Cogmind - Beta 12 @@@ ROGUE MODE // 2023.12.15 @ 00:09:13 Player: puppuppit Result: Destroyed by G-34 Mercenary with Small Laser Performance ------------- Evolutions (0) 0 Regions Visited (4) 800 Robots Destroyed (13) 65 Value Destroyed (288) 288 Prototype IDs (28) 560 Alien Tech Used (0) 0 Bonus (300) 300 TOTAL SCORE: 2013 Bonus ------- Aligned with FarCom 300 Cogmind --------- Core Integrity 0/250 Matter 270/300 Energy 38/100 System Corruption 4% Temperature Cool (6) Movement Core (50) Location -9/Mines Parts ------- > --- POWER (1) -------- (None) > --- PROPULSION (2) --- (None) > --- UTILITY (2) ------ (None) > --- WEAPON (2) ------- Light Assault Rifle > --- INVENTORY (5) ---- Light Ion Engine Flying Fortress v7 Peak State ------------ > --- POWER ------------ Light Ion Engine > --- PROPULSION ------- Flight Unit Flight Unit > --- UTILITY ---------- Shield Generator > --- WEAPON ----------- Light Assault Rifle Light Assault Rifle > --- INVENTORY -------- Flying Fortress v7 Shield Generator [Rating: 10] Favorites ----------- Power Light Ion Engine Engine Light Ion Engine Propulsion Flight Unit Wheel Compact Wheel Flight Unit Flight Unit Utility Shield Generator Device Shield Generator Storage Small Storage Unit Weapon Light Assault Rifle Ballistic Gun Light Assault Rifle Launcher Grenade Launcher Build | -11 -10 -10 -10 -9 ------- Run | Jun Mat Min Exi Min Slots Evolved . | . . . . . Power . | . . . . . Propulsion . | . . . . . Utility . | . . . . . Weapon . | . . . . . Parts Attached 26 | 5 12 4 4 1 Power 4 | 1 1 1 1 . Engine 4 | 1 1 1 1 . Core . | . . . . . Reactor . | . . . . . Propulsion 10 | 2 4 2 2 . Treads . | . . . . . Leg . | . . . . . Wheel 2 | 2 . . . . Hover . | . . . . . Flight 8 | . 4 2 2 . Utility 6 | 1 4 . . 1 Device 5 | . 4 . . 1 Storage 1 | 1 . . . . Processor . | . . . . . Hackware . | . . . . . Protection . | . . . . . Artifact . | . . . . . Weapon 6 | 1 3 1 1 . Energy Gun . | . . . . . Energy Cannon . | . . . . . Ballistic Gun 4 | 1 1 1 1 . Ballistic Cannon . | . . . . . Launcher 2 | . 2 . . . Special Weapon . | . . . . . Impact Weapon . | . . . . . Slashing Weapon . | . . . . . Piercing Weapon . | . . . . . Special Melee Weapon . | . . . . . Unidentified Prototypes . | . . . . . Parts Lost 9 | . 2 2 . 5 Power 1 | . 1 . . . Propulsion 3 | . . 1 . 2 Utility 2 | . . . . 2 Weapon 3 | . 1 1 . 1 Highest Loss Streak 3 | . 1 2 . 3 To Critical Strikes . | . . . . . Average Slot Usage (%) 70 | . 68 69 73 70 Engine 11 | . 10 12 14 8 Wheel 6 | . 17 . . . Flight 20 | . 10 28 28 20 Device 11 | . 5 14 14 14 Storage 3 | . 9 . . . Ballistic Gun 15 | . 12 6 16 26 Launcher 1 | . 1 7 . . Naked Turns . | . . . . . Heaviest Build 10 | 10 10 8 7 7 Greatest Support 26 | 26 26 8 8 8 Greatest Overweight (x) 2 | . 1 2 . 1 Average Overweight (x) . | . . . . . Largest Inventory Capacity 8 | 8 8 5 5 5 Average Capacity 5 | 5 7 5 5 5 Most Carried 5 | 1 5 5 5 5 Average Carried 3 | . 2 5 4 4 Final Capacity 8 | 8 5 5 5 5 Final Carried 5 | 1 5 5 5 5 Class Distribution -------------------- 83% | Mutant 16% | Scavenger-Mutant Dominant Class ---------------- Mutant | -10/Materials Mutant | -10/Mines Mutant | -10/Exiles Mutant | -9/Mines Resources | -11 -10 -10 -10 -9 ----------- Run | Jun Mat Min Exi Min Matter Collected 484 | 159 10 32 200 83 Remotely 10 | . 10 . . . Salvage Created 257 | . 225 32 . . Parts 26 | . 20 6 . . Haulers Intercepted . | . . . . . Recyclers Shooed . | . . . . . Parts Field Recycled . | . . . . . Retrieved Matter . | . . . . . Parts Self-Destructed . | . . . . . Prevented . | . . . . . Kills | -11 -10 -10 -10 -9 ------- Run | Jun Mat Min Exi Min Combat Hostiles Destroyed 11 | . 8 3 . . Guns 4 | . 3 1 . . AOE 7 | . 5 2 . . Classes Destroyed 4 | . 4 . . . Builder 1 | . 1 . . . Watcher 1 | . 1 . . . Swarmer 5 | . 2 3 . . Grunt 6 | . 6 . . . Best Kill Streak 9 | . 9 2 . . Combat Bots Only 8 | . 8 2 . . Max Kills in Single Turn 3 | . 3 2 . . Gunslinging . | . . . . . Exploded 2 | . 2 2 . . Melee . | . . . . . Uniques/NPCs Destroyed . | . . . . . Combat | -11 -10 -10 -10 -9 -------- Run | Jun Mat Min Exi Min Damage Taken 815 | . 321 99 . 395 Core 257 | . 63 14 . 180 Absorbed by Shields 100 | . . 45 . 55 Core Remaining (%) 100 | 100 . . . . Volleys Fired 33 | . 24 8 . 1 Largest 2 | . 2 1 . 2 Hottest 50 | . 50 30 . 40 Shots Fired 38 | . 28 8 . 2 Gun 31 | . 23 6 . 2 Cannon . | . . . . . Launcher 7 | . 5 2 . . Special . | . . . . . Kinetic 31 | . 23 6 . 2 Thermal . | . . . . . Explosive 7 | . 5 2 . . Electromagnetic . | . . . . . Robot Hit Streak 3 | . 3 1 . 3 Robot Miss Streak 3 | . 3 2 . . Penetration Max . | . . . . . Secondary Targets . | . . . . . Shots Hit Robots 15 | . 9 4 . 2 Core Hits 28 | . 21 4 . 3 Critical Kills . | . . . . . Critical Parts Destroyed . | . . . . . Critical Strikes . | . . . . . Melee Attacks . | . . . . . Impact . | . . . . . Slashing . | . . . . . Piercing . | . . . . . Sneak Attacks . | . . . . . Combat Hostiles . | . . . . . Follow-up Attacks . | . . . . . Damage Inflicted 811 | . 560 227 . 24 Guns 217 | . 179 23 . 15 Cannons . | . . . . . Explosions 565 | . 374 191 . . Melee . | . . . . . Ramming 29 | . 7 13 . 9 Kinetic 217 | . 179 23 . 15 Thermal . | . . . . . Explosive 565 | . 374 191 . . Electromagnetic . | . . . . . Impact . | . . . . . Slashing . | . . . . . Piercing . | . . . . . Highest Corruption 4 | . . . . 4 Average Corruption 2 | . . . . 2 Corruption Purged . | . . . . . Corruption Blocked . | . . . . . Overload Shots . | . . . . . Overflow Damage 6 | . 6 . . . Projectiles . | . . . . . Explosions 6 | . 6 . . . Melee . | . . . . . Knockbacks . | . . . . . Impact . | . . . . . Kinetic . | . . . . . Secondary . | . . . . . Self-Inflicted Damage 12 | . 3 5 . 4 Shots . | . . . . . Rammed 14 | . 4 7 . 3 Targets Rammed 14 | . 4 7 . 3 Kicked . | . . . . . Crushed . | . . . . . Highest Temperature 12 | . 12 . . 12 Average Temperature 4 | . 3 . . 7 Received Heat Transfer 259 | . 156 . . 103 Siege Activations . | . . . . . Robots Corrupted . | . . . . . Combat Hostiles . | . . . . . Parts Fried . | . . . . . Impact Corruptions . | . . . . . Robots Melted . | . . . . . Combat Hostiles . | . . . . . Parts Melted . | . . . . . Heat Transferred . | . . . . . Parts Sabotaged . | . . . . . Parts Stolen . | . . . . . Parts Stripped . | . . . . . Power Chain Reactions . | . . . . . Missiles Intercepted . | . . . . . Alert | -11 -10 -10 -10 -9 ------- Run | Jun Mat Min Exi Min Peak Influence 336 | . 336 139 . 15 Initial 72 | . . 72 . . Average 84 | . 133 111 . 1 Maximum Alert Level 1 | . 1 . . . Low Security (%) 83 | 100 62 100 . 100 Level 1 16 | . 37 . . . Level 2 . | . . . . . Level 3 . | . . . . . Level 4 . | . . . . . Level 5 . | . . . . . High Security . | . . . . . Max Security . | . . . . . Squads Dispatched 4 | . 4 . . . Investigation 3 | . 3 . . . Extermination . | . . . . . Reinforcement 1 | . 1 . . . Assault . | . . . . . Garrison . | . . . . . Intercept . | . . . . . Searches Triggered . | . . . . . Construction Impeded . | . . . . . Haulers Reinforced . | . . . . . Active Scanning Responses . | . . . . . Cargo Convoy Interrupts . | . . . . . Stealth | -11 -10 -10 -10 -9 --------- Run | Jun Mat Min Exi Min Distress Signals 1 | . 1 . . . Communications Jammed . | . . . . . Distress Signals . | . . . . . Times Spotted 49 | . 17 2 . 30 Peak Tracking Total 17 | . 10 3 . 17 Tactical Retreats 5 | . 2 . . 3 Traps | -11 -10 -10 -10 -9 ------- Run | Jun Mat Min Exi Min Traps Triggered 2 | . 2 . . . Indirectly . | . . . . . Trap Hack Attempts . | . . . . . Triggered . | . . . . . Disarmed . | . . . . . Reprogrammed . | . . . . . Reused . | . . . . . Traps Extracted . | . . . . . Installed . | . . . . . Triggered . | . . . . . Machines | -11 -10 -10 -10 -9 ---------- Run | Jun Mat Min Exi Min Machines Disabled . | . . . . . Max in Single Turn . | . . . . . Machines Repaired . | . . . . . Machines Sabotaged . | . . . . . Overloaded Fab Kills . | . . . . . Hacking | -11 -10 -10 -10 -9 --------- Run | Jun Mat Min Exi Min Machines Accessed 10 | . 5 . 5 . Terminals 5 | . 5 . . . Fabricators . | . . . . . Repair Stations . | . . . . . Recycling Units . | . . . . . Scanalyzers . | . . . . . Garrison Access . | . . . . . Total Hacks 66 | . 16 . 50 . Successful 58 | . 8 . 50 . Failed 8 | . 8 . . . Catastrophic 2 | . 2 . . . Database Lockouts . | . . . . . Manual 1 | . . . 1 . Terminals 16 | . 16 . . . Fabricators . | . . . . . Repair Stations . | . . . . . Recycling Units . | . . . . . Scanalyzers . | . . . . . Garrison Access . | . . . . . Terminal Hacks 58 | . 8 . 50 . Record 50 | . 1 . 49 . Prototype ID Bank 2 | . 2 . . . Unreport Threat 1 | . 1 . . . Recall Investigation 2 | . 2 . . . Recall Reinforcements 1 | . 1 . . . Zone Layout 1 | . 1 . . . EX-Prototype ID Bank 1 | . . . 1 . Fabricator Hacks . | . . . . . Repair Station Hacks . | . . . . . Recycling Unit Hacks . | . . . . . Scanalyzer . | . . . . . Garrison Access Hacks . | . . . . . Unauthorized Hacks . | . . . . . Terminals . | . . . . . Fabricators . | . . . . . Repair Stations . | . . . . . Recycling Units . | . . . . . Scanalyzers . | . . . . . Garrison Access . | . . . . . Data Cores Recovered . | . . . . . Used . | . . . . . Hacking Detections 5 | . 5 . . . Full Trace Events 2 | . 2 . . . Feedback Events . | . . . . . Feedback Blocked . | . . . . . Robot Schematics Acquired . | . . . . . Robots Built . | . . . . . Authchips . | . . . . . Time . | . . . . . Total Robot Build Rating . | . . . . . Part Schematics Acquired . | . . . . . Parts Built . | . . . . . Authchips . | . . . . . Time . | . . . . . Total Part Build Rating . | . . . . . Parts Repaired . | . . . . . Time . | . . . . . Parts Recycled . | . . . . . Recycled Matter . | . . . . . Retrieved Matter . | . . . . . Retrieved Components . | . . . . . Parts Scanalyzed . | . . . . . Part Schematics Acquired . | . . . . . Parts Damaged . | . . . . . Bothacking | -11 -10 -10 -10 -9 ------------ Run | Jun Mat Min Exi Min Used RIF Installer . | . . . . . Robots Hacked . | . . . . . Non-combat . | . . . . . Combat . | . . . . . Robot Hacks Applied . | . . . . . Relay Couplers Released . | . . . . . Fabnet Peak Effective % . | . . . . . Robots Rewired . | . . . . . Allies Hacked . | . . . . . Hacks Repelled . | . . . . . Allies | -11 -10 -10 -10 -9 -------- Run | Jun Mat Min Exi Min Total Allies . | . . . . . Largest Group . | . . . . . Highest-Rated Group . | . . . . . Highest-Rated Ally . | . . . . . Total Orders . | . . . . . Ally Attacks . | . . . . . Total Damage . | . . . . . Kills . | . . . . . Allies Corrupted . | . . . . . Allies Melted . | . . . . . Intel | -11 -10 -10 -10 -9 ------- Run | Jun Mat Min Exi Min Robot Analysis Total . | . . . . . Derelict Logs Recovered 1 | . . . . 1 Drone Launches . | . . . . . Drone Recoveries . | . . . . . Exploration | -11 -10 -10 -10 -9 ------------- Run | Jun Mat Min Exi Min Turns Passed 874 | 46 284 133 245 166 Spaces Moved 1446 | 43 342 213 634 214 Core 46 | 3 2 6 . 35 Treads . | . . . . . Legs . | . . . . . Wheels 180 | 40 140 . . . Hover . | . . . . . Flight 1220 | . 200 207 634 179 Fastest Speed 37 | 50 37 37 37 37 Average Speed 44 | 87 59 39 37 40 Slowest Speed 150 | 100 100 150 37 100 Overloaded Moves . | . . . . . Propulsion Burnouts . | . . . . . Robots Hopped 19 | . 1 1 . 17 Cave-ins Triggered . | . . . . . Exploration Rate (%) 41 | 3 57 34 91 22 Regions Visited 4 Branch Regions 3 Pre-discovered Areas 1 | . . . 1 . Known Exits Taken . | . . . . . Unknown Exits Taken 4 | 1 1 1 1 . Scrap Searched . | . . . . . Spaces Dug . | . . . . . Terrain Destroyed 42 | . 25 17 . . Melee . | . . . . . Projectile . | . . . . . AOE 42 | . 25 17 . . Terrain Rammed . | . . . . . Walls Destroyed . | . . . . . Machines Disabled . | . . . . . Actions | -11 -10 -10 -10 -9 --------- Run | Jun Mat Min Exi Min Total 1613 | 48 395 248 646 276 Wait 92 | . 2 16 1 73 Move 1413 | 42 339 210 633 189 Hop 10 | . 1 1 . 8 Pick Up 4 | 1 2 . 1 . Fast Attach 18 | 5 9 3 1 . Attach 2 | . 1 . . 1 Detach 5 | . 4 . . 1 Swap 6 | . 2 1 3 . Drop 16 | . 7 2 7 . Fire 33 | . 24 8 . 1 Melee . | . . . . . Ram 14 | . 4 7 . 3 Kick . | . . . . . Crush . | . . . . . Escape Stasis . | . . . . . Rewire . | . . . . . Trap . | . . . . . Miscellaneous . | . . . . . Route ------- -11/Junkyard -10/Materials (discovered 3 exits: [*Mat] / [*Min x2]) -10/Mines (discovered 3 exits: [*Mat x2] / *Exi) -10/Exiles -9/Mines History --------- Turn | Location | Event 23 | -11/Junkyard | Discovered new exit (range 15) 47 | -11/Junkyard | Entered Materials 242 | -10/Materials | Destroyed 8 combat bots 252 | -10/Materials | Discovered new exit (range 12) 262 | -10/Materials | Discovered new exit (range 10) 314 | -10/Materials | Discovered new exit (range 13) 319 | -10/Materials | Build established: Mutant 331 | -10/Materials | Entered Mines 331 | -10/Mines | Discovered new exit (range 13) 378 | -10/Mines | Discovered new exit (range 15) 448 | -10/Mines | Deemed a non-threat by the Exiles lab entrance 448 | -10/Mines | Discovered new exit (range 5) 464 | -10/Mines | Entered Exiles 473 | -10/Exiles | Met 8R-AWN 479 | -10/Exiles | Met EX-HEX 507 | -10/Exiles | Met EX-BIN 511 | -10/Exiles | Aligned with FarCom system 511 | -10/Exiles | Given EX-Vault access code 526 | -10/Exiles | Opened EX-Vault 532 | -10/Exiles | Found Flying Fortress v7 540 | -10/Exiles | Warned to stay clear of 0b10 Research branches 551 | -10/Exiles | Met EX-DEC 555 | -10/Exiles | Learned location of Zion (-7) 576 | -10/Exiles | Visited The Gauntlet 704 | -10/Exiles | Discovered new exit (range 14) 709 | -10/Exiles | Left Exiles lab with Flying Fortress v7 709 | -10/Exiles | Entered Mines 791 | -9/Mines | Assembled infested the area 853 | -9/Mines | Core integrity fell below 50% 869 | -9/Mines | Core integrity fell below 20% 875 | -9/Mines | Destroyed by G-34 Mercenary with Small Laser Last Messages --------------- GOAL=ESCAPE 00709_ Receiving FarCom transmissions... 00720_ T-07 Excavator is excavating. 00791_ ALERT: Infestation in the mines, dispatching Demolisher response squad. 00793_ Acquired derelict log, extracted data. Data stored: Lower Caves entrances (x1). 00804_ Shield Generator destroyed. 00806_ Slammed into as-37874. 00806_ Destabilizing: Core damaged (-10). 00807_ Flight Unit destroyed. 00810_ Acquired 71 matter. 00856_ Flight Unit destroyed. 00856_ System corrupted by crushing effect (+2). 00856_ Lgt. Assault Rifle destroyed. 00858_ Knocked back. 00862_ Acquired 12 matter. 00871_ Shield Generator destroyed. 00874_ Slammed into G-47 Trooper. 00874_ Destabilizing: System corrupted (+2). 00875_ Slammed into G-34 Mercenary. Map ----- +----------------------------------------------------+ | ?????????????????????????????????????????????????? | | ?????????????????????????????????????????????????? | | ?????????????????????????????????????????????????? | | ?????????????????????????????????????????????????? | | ?????????????????????????????????????????????????? | | ?????????????????????????????????????????????????? | | ?????????????????????????????????????????????????? | | ###??????????????????????????????????????????????? | | ##?????????????????????????????????????????????? | | #?????????????????????????????????????????????? | | #?????????????????????????????????????????????? | | ##????????????????????????????????????????????? | | ###????????????bg????????????????????????????? | | ##?????????????????????????????????????????? | | ##????????????????????????????????????????? | | ##???????????????????????????????????????? | | ##??????????????????????????????????????? | | #??????????????????????????????????????? | | #??????????????????????????????????????? | | ##?????????????????????????????????????? | | #?????????????????????????????????????? | | #????#####????????????????????????????? | | ## #???## ####?????????????????????????? | | ###### ##???# ##????????????????????????? | | ##????## #????# a #######??????????????????? | | ##??????# #????# a ag g@g % #??????????????????? | | ????????# ###### a## ##### #??#???????????????? | | ????????# #### ##???# ## #???????????????? | | ????????# #??####????# #???????????????? | | ????????####### ##??????????# ####???????????????? | | ??????????????###???????????# #??????????????????? | | ??????????????????????????### #??????????????????? | | ??????????????????????????# #??????????????????? | | ??????????????????????????# ###??????????????????? | | ?????????????????????????=% #????????????????????? | | ????????????????????????### #????????????????????? | | ??????????????????????????# #????????????????????? | | ??????????????????????????# #????????????????????? | | ??????????????????????????# #????????????????????? | | ??????????????????????????# #????????????????????? | | ??????????????????????????# ???????????????????? | | ?????????????????????????? %?????????????????? | | ?????????????????????????? = ???????????????? | | ????????????????????????? ##??????????????? | | ????????????????????????? ####???????????????? | | ????????????????????????# ##??????????????????? | | ????????????????????????## #???????????????????? | | ?????????????????????????## ##???????????????????? | | ???????????????????????????#?????????????????????? | | ?????????????????????????????????????????????????? | +----------------------------------------------------+ Best States ------------- Heat Dissipation 25 Energy Generation 10 Energy Capacity 125 Matter Stores 260 Matter Capacity 300 Sight Range 16 Terrain Scan Density 10 Evasion (%) 62 Item Schematics ----------------- None Robot Schematics ------------------ None Fabricated ------------ Nothing Alien Tech Used ----------------- None Achievements -------------- None Challenges ------------ None Game ------ Seed FrostFortressScreen Manual? 0 Play Time 00:21:14 Cumulative 16.6 hours Start 2023.12.14 @ 23:47:18 End 2023.12.15 @ 00:09:13 Sessions 1 Manual Loads 0 Difficulty Rogue Special Mode None Game No. 12 Rogue 12 Adventurer 0 Explorer 0 Win Type - Total 0 Types 0/0/0/0/0/0/0/0/0 Lore% 19 Gallery% 21 Achievement% 22 Wizard Run 0 Options --------- ASCII 0 Keyboard 1 Movement Arrows Keybinds 0 Fullscreen 1 Font 12/Proggy Map View 83x54 Tactical HUD 1 Map Filters NONE Filters NONE Steam 0 RUN: 3d30247f-e000-4703-8859-7cb539dabf2a